bitfinex-derivatives/quotes_BTCF0:USTF0_20250911
["timestamp","ask_amount","ask_price","bid_price","bid_amount"]
[1757551625736,0.79836,113820.0,113810.0,2.23564352]
[1757551626336,0.79836,113820.0,113810.0,2.0778054]
[1757551628236,0.79836,113820.0,113810.0,2.23560127]
[1757551629038,0.79836,113820.0,113810.0,2.0778054]
[1757551629332,0.79812,113820.0,113810.0,2.23559403]
[1757551630137,0.79812,113820.0,113810.0,2.0778054]
[1757551631838,1.7716,113830.0,113820.0,0.1281954]
[1757551632039,2.56916,113830.0,113820.0,1.96949771]
[1757551633039,2.57016,113830.0,113820.0,1.97249771]
[1757551633538,1.7726,113830.0,113820.0,1.97249771]
[1757551633834,0.02543,113850.0,113840.0,0.12848]
[1757551634034,0.82287,113850.0,113840.0,1.49119987]
[1757551635042,0.82287,113850.0,113840.0,1.49219987]
[1757551635235,0.82387,113850.0,113840.0,1.49219987]
[1757551636337,0.82387,113850.0,113840.0,1.35462658]
[1757551636541,0.83985,113850.0,113840.0,1.35462658]
[1757551637043,0.83985,113850.0,113840.0,1.42616505]
[1757551640343,0.83985,113850.0,113840.0,1.56373834]
[1757551644250,0.83985,113850.0,113840.0,1.57251837]
[1757551645551,0.83985,113850.0,113840.0,1.56373834]
[1757551646653,0.83985,113850.0,113840.0,1.15101847]
[1757551646954,0.83985,113850.0,113840.0,1.54856834]
[1757551647251,0.83985,113850.0,113840.0,1.41099505]
[1757551647451,0.83985,113850.0,113840.0,1.04802847]
[1757551647754,0.83985,113850.0,113840.0,1.32317505]
[1757551650157,0.83985,113850.0,113840.0,1.04802847]
[1757551650353,0.83985,113850.0,113840.0,1.32317505]
[1757551651649,1.58822329,113850.0,113840.0,1.04802847]
[1757551651849,1.58822329,113850.0,113840.0,0.421]
[1757551652251,1.58822329,113850.0,113840.0,0.55857329]
[1757551653554,1.58822329,113850.0,113840.0,0.86857329]
[1757551654358,1.54233454,113850.0,113840.0,0.731]
[1757551654854,0.65321,113850.0,113840.0,0.75742]
[1757551655148,1.45113,113850.0,113840.0,0.84910454]
[1757551655453,1.45113,113850.0,113840.0,0.75742]
[1757551655653,1.45113,113850.0,113840.0,0.84910454]
[1757551656155,1.45113,113850.0,113840.0,0.75742]
[1757551656359,1.45113,113850.0,113840.0,0.82268454]
[1757551657558,1.45113,113850.0,113840.0,0.731]
[1757551657751,1.45113,113850.0,113840.0,0.82268454]
[1757551657952,1.54281454,113850.0,113840.0,0.341]
[1757551658153,1.63449908,113850.0,113840.0,0.25916]
[1757551658352,1.54281454,113850.0,113840.0,0.17732]
[1757551658753,1.52683454,113850.0,113840.0,0.1364]
[1757551658954,1.52683454,113850.0,113840.0,0.29675]
[1757551659253,1.27683454,113850.0,113840.0,0.29675]
[1757551660960,1.61851908,113850.0,113840.0,0.29675]
[1757551661159,1.61851908,113850.0,113840.0,0.19962917]
[1757551661352,1.61851908,113850.0,113840.0,0.17188917]
[1757551661759,1.61851908,113850.0,113840.0,0.34575]
[1757551662468,1.61851908,113850.0,113840.0,0.28983342]
[1757551664465,1.61851908,113850.0,113840.0,0.24962057]
[1757551665062,0.82059908,113850.0,113840.0,0.24962057]
[1757551665264,1.61935908,113850.0,113840.0,0.24962057]
[1757551666462,1.61935908,113850.0,113840.0,0.13770965]
[1757551666768,1.71104362,113850.0,113840.0,0.32575]
[1757551666968,1.61935908,113850.0,113840.0,0.32575]
[1757551669668,0.82059908,113850.0,113840.0,0.32575]
[1757551670172,1.61935908,113850.0,113840.0,0.32575]
[1757551671774,1.61959908,113850.0,113840.0,0.32575]
[1757551673269,1.61967908,113850.0,113840.0,0.32575]
[1757551674177,0.82059908,113850.0,113840.0,0.32575]
[1757551674474,1.61967908,113850.0,113840.0,0.32575]
[1757551676676,0.82059908,113850.0,113840.0,0.32575]
[1757551677070,1.61947908,113850.0,113840.0,0.32575]
[1757551677269,1.61943908,113850.0,113840.0,0.32575]
[1757551677977,0.82059908,113850.0,113840.0,0.32575]
[1757551678173,1.61943908,113850.0,113840.0,0.32575]
[1757551679476,0.82059908,113850.0,113840.0,0.32575]
[1757551679678,1.61951908,113850.0,113840.0,0.32575]
[1757551681280,1.61943908,113850.0,113840.0,0.32575]
[1757551681481,0.47891454,113850.0,113840.0,0.32575]
[1757551681678,1.27819454,113850.0,113840.0,0.32575]
[1757551681981,1.27819454,113850.0,113840.0,0.57575]
[1757551682182,1.18651,113850.0,113840.0,0.57575]
[1757551682382,1.27819454,113850.0,113840.0,0.57575]
[1757551682784,0.47891454,113850.0,113840.0,0.57575]
[1757551682980,1.27823454,113850.0,113840.0,0.603]
[1757551683184,1.27823454,113850.0,113840.0,0.57575]
[1757551685684,1.27823454,113850.0,113840.0,0.603]
[1757551685981,0.47891454,113850.0,113840.0,0.603]
[1757551686186,0.38723,113850.0,113840.0,0.69468454]
[1757551686377,0.3618,113850.0,113840.0,0.82468454]
[1757551686577,0.3618,113850.0,113840.0,0.91636908]
[1757551686773,1.16292,113850.0,113840.0,0.92636908]
[1757551688686,1.16288,113850.0,113840.0,1.40636908]
[1757551688985,1.16288,113850.0,113840.0,1.01636908]
[1757551689887,0.3618,113850.0,113840.0,1.01636908]
[1757551690087,1.1628,113850.0,113840.0,1.01636908]
[1757551690389,1.16276,113850.0,113840.0,1.01636908]
[1757551692187,1.16276,113850.0,113840.0,1.37636908]
[1757551697893,0.3618,113850.0,113840.0,1.37636908]
[1757551698094,1.16204,113850.0,113840.0,1.46418908]
[1757551698994,1.16204,113850.0,113840.0,1.193]
[1757551699197,1.16204,113850.0,113840.0,1.37636908]
[1757551701199,1.16204,113850.0,113840.0,1.46418908]
[1757551703699,0.3618,113850.0,113840.0,1.55587362]
[1757551703894,1.16168,113850.0,113840.0,1.55587362]
[1757551704495,0.80088,113850.0,113840.0,1.55587362]
[1757551706897,0.001,113850.0,113840.0,1.55587362]
[1757551707097,0.80088,113850.0,113840.0,1.55587362]
[1757551709594,0.80088,113850.0,113840.0,1.46418908]
[1757551711799,0.80052,113850.0,113840.0,1.46418908]
[1757551712499,0.001,113850.0,113840.0,1.46418908]
[1757551712700,0.80048,113850.0,113840.0,1.55587362]
[1757551713204,0.001,113850.0,113840.0,1.55587362]
[1757551713406,0.8004,113850.0,113840.0,1.55587362]
[1757551714401,0.80064,113850.0,113840.0,1.69330623]
[1757551714596,0.3608,113860.0,113840.0,1.69311783]
[1757551714796,2.13196,113870.0,113860.0,0.1290146]
[1757551715001,2.57124,113870.0,113860.0,1.19644721]
[1757551715201,2.57124,113870.0,113860.0,1.47131243]
[1757551715601,2.57124,113870.0,113860.0,1.54303514]
[1757551717607,2.57324,113870.0,113860.0,1.54303514]
[1757551717809,2.57324,113870.0,113860.0,1.13073731]
[1757551718103,2.57324,113870.0,113860.0,1.54303514]
[1757551718509,2.57124,113870.0,113860.0,1.54303514]
[1757551718808,2.57124,113870.0,113860.0,1.31779793]
[1757551723608,2.57124,113870.0,113860.0,1.54303514]
[1757551727513,2.57124,113870.0,113860.0,1.40560253]
[1757551727708,2.57124,113870.0,113860.0,1.31779793]
[1757551728616,2.57124,113870.0,113860.0,1.40560253]
[1757551729317,2.57124,113870.0,113860.0,1.13073731]
[1757551729517,2.57124,113870.0,113860.0,1.40560253]
[1757551734612,1.77116,113870.0,113860.0,1.54303514]
[1757551734819,2.57264,113870.0,113860.0,1.90383514]
[1757551735121,1.77116,113870.0,113860.0,1.90383514]
[1757551735324,2.57256,113870.0,113860.0,1.90383514]
[1757551736222,2.57256,113870.0,113860.0,1.91262827]
[1757551739422,2.57256,113870.0,113860.0,1.90383514]
[1757551739720,2.57256,113870.0,113860.0,1.81603054]
[1757551739918,2.57256,113870.0,113860.0,1.76640253]
[1757551740124,2.57232,113870.0,113860.0,1.90383514]
[1757551740723,2.57232,113870.0,113860.0,1.54303514]
[1757551740923,2.57232,113870.0,113860.0,1.90383514]
[1757551741325,2.57232,113870.0,113860.0,1.76640253]
[1757551741524,2.57232,113870.0,113860.0,1.40560253]
[1757551742226,2.57232,113870.0,113860.0,1.31779793]
[1757551743828,2.57232,113870.0,113860.0,1.04293271]
[1757551744022,2.57232,113870.0,113860.0,1.31779793]
[1757551748632,2.57232,113870.0,113860.0,1.47558037]
[1757551749635,2.93312,113870.0,113860.0,1.47558037]
[1757551750139,2.93312,113870.0,113860.0,1.20071515]
[1757551750343,2.93312,113870.0,113860.0,1.47558037]
[1757551750536,2.57232,113870.0,113860.0,1.47558037]
[1757551751333,0.80072,113870.0,113860.0,1.56338427]
[1757551751537,0.80072,113870.0,113860.0,1.28851905]
[1757551751727,0.80072,113870.0,113860.0,1.56338427]
[1757551751928,0.3608,113880.0,113860.0,1.40560183]
[1757551752238,0.3608,113880.0,113870.0,0.17852261]
[1757551752435,1.162,113880.0,113870.0,1.12852261]
[1757551752636,1.162,113880.0,113870.0,0.99109]
[1757551752939,1.29943261,113880.0,113870.0,0.99109]
[1757551753140,1.162,113880.0,113870.0,1.12852261]
[1757551753542,1.164,113880.0,113870.0,1.12852261]
[1757551754243,1.162,113880.0,113870.0,1.12852261]
[1757551754445,1.164,113880.0,113870.0,1.12852261]
[1757551754639,1.166,113880.0,113870.0,1.12852261]
[1757551756646,1.69086522,113880.0,113870.0,0.99109]
[1757551756950,1.69086522,113880.0,113870.0,0.35583]
[1757551757832,1.416,113880.0,113870.0,0.38109]
[1757551758133,1.69086522,113880.0,113870.0,0.38109]
[1757551760948,1.69158522,113880.0,113870.0,0.38109]
[1757551763757,1.69158522,113880.0,113870.0,0.35583]
[1757551764155,1.69158522,113880.0,113870.0,0.38016]
[1757551764960,1.41672,113880.0,113870.0,0.38016]
[1757551765260,1.69158522,113880.0,113870.0,0.38016]
[1757551767255,1.69158522,113880.0,113870.0,0.35583]
[1757551767657,1.69158522,113880.0,113870.0,0.38016]
[1757551772562,1.69158522,113880.0,113870.0,0.35583]
[1757551774561,1.69158522,113880.0,113870.0,0.38016]
[1757551774856,1.69122522,113880.0,113870.0,0.35583]
[1757551775061,1.69122522,113880.0,113870.0,0.38016]
[1757551775464,1.69122522,113880.0,113870.0,0.35583]
[1757551775962,0.88966522,113880.0,113870.0,0.35583]
[1757551776263,1.69114522,113880.0,113870.0,0.35583]
[1757551776465,1.59957036,113880.0,113870.0,0.35583]
[1757551779464,1.34957036,113880.0,113870.0,0.35583]
[1757551779966,1.34957036,113880.0,113870.0,0.35598]
[1757551780368,1.34957036,113880.0,113870.0,0.38031]
[1757551781867,1.34957036,113880.0,113870.0,0.35598]
[1757551782268,1.69121554,113880.0,113870.0,0.35598]
[1757551782472,0.88973554,113880.0,113870.0,0.35598]
[1757551782769,1.59961036,113880.0,113870.0,0.35598]
[1757551785368,0.79809036,113880.0,113870.0,0.35598]
[1757551785571,1.59945036,113880.0,113870.0,0.35598]
[1757551788173,0.79809036,113880.0,113870.0,0.35598]
[1757551788375,1.59921036,113880.0,113870.0,0.35598]
[1757551799280,0.79809036,113880.0,113870.0,0.35598]
[1757551799577,1.59833036,113880.0,113870.0,0.35598]
[1757551799777,0.79809036,113880.0,113870.0,0.35598]
[1757551799980,1.59825036,113880.0,113870.0,0.35598]
[1757551800279,0.79809036,113880.0,113870.0,0.35598]
[1757551800473,1.59853036,113880.0,113870.0,0.35598]
[1757551801976,1.59837036,113880.0,113870.0,0.35598]
[1757551802484,0.79809036,113880.0,113870.0,0.35598]
[1757551802681,1.59837036,113880.0,113870.0,0.35598]
[1757551803882,1.59829036,113880.0,113870.0,0.35598]
[1757551808486,1.95909036,113880.0,113870.0,0.35598]
[1757551808884,3.73005036,113880.0,113870.0,0.35598]
[1757551809384,2.92985036,113880.0,113870.0,0.35598]
[1757551809584,3.72977036,113880.0,113870.0,0.35598]
[1757551810284,3.54648,113880.0,113870.0,0.35598]
[1757551810484,3.72977036,113880.0,113870.0,0.35598]
[1757551813383,3.72949036,113880.0,113870.0,0.35598]
[1757551815087,2.92985036,113880.0,113870.0,0.35598]
[1757551815287,2.92985036,113880.0,113870.0,0.6298]
[1757551815288,3.38772518,113880.0,113870.0,0.6298]
[1757551815487,3.47937036,113880.0,113870.0,0.6298]
[1757551816190,2.67985036,113880.0,113870.0,0.6298]
[1757551816386,3.296,113880.0,113870.0,0.6298]
[1757551816586,3.38764518,113880.0,113870.0,0.6298]
[1757551817186,3.38792518,113880.0,113870.0,0.6298]
[1757551817384,3.38804518,113880.0,113870.0,0.6298]
[1757551821490,3.2964,113880.0,113870.0,0.6298]
[1757551821787,3.38772518,113880.0,113870.0,0.6298]
[1757551822188,3.29608,113880.0,113870.0,0.6298]
[1757551822378,3.38772518,113880.0,113870.0,0.6298]
[1757551824091,2.58820518,113880.0,113870.0,0.6298]
[1757551824292,3.38756518,113880.0,113870.0,0.6298]
[1757551826294,2.58820518,113880.0,113870.0,0.6298]
[1757551826498,3.38752518,113880.0,113870.0,0.6298]
[1757551828195,3.38732518,113880.0,113870.0,0.6298]
[1757551828495,3.38732518,113880.0,113870.0,0.7498]
[1757551828789,3.38732518,113880.0,113870.0,0.6298]
[1757551829184,3.38720518,113880.0,113870.0,0.4998]
[1757551829387,3.38720518,113880.0,113870.0,0.3798]
[1757551830895,2.58820518,113880.0,113870.0,0.3798]
[1757551831193,3.38700518,113880.0,113870.0,0.3798]
[1757551831993,3.29536,113880.0,113870.0,0.3798]
[1757551832300,3.38700518,113880.0,113870.0,0.3798]
[1757551834200,3.38680518,113880.0,113870.0,0.58144518]
[1757551834596,3.29516,113880.0,113870.0,0.58144518]
[1757551834997,3.3155416,113880.0,113870.0,0.58144518]
[1757551836001,3.3155416,113880.0,113870.0,0.47144518]
[1757551836202,3.3155416,113880.0,113870.0,0.60144518]
[1757551836400,3.45297896,113880.0,113870.0,0.64723736]
[1757551837902,2.65437896,113880.0,113870.0,0.64723736]
[1757551838202,3.45269896,113880.0,113870.0,0.64723736]
[1757551838702,2.65437896,113880.0,113870.0,0.76723736]
[1757551838900,3.3152616,113880.0,113870.0,0.89723736]
[1757551839104,3.45269896,113880.0,113870.0,0.89723736]
[1757551839299,3.45269896,113880.0,113870.0,1.12247162]
[1757551839300,2.49656,113880.0,113870.0,1.12247162]
[1757551839505,3.29584,113880.0,113870.0,1.14503426]
[1757551839800,3.29584,113880.0,113870.0,1.28247162]
[1757551840008,3.2958,113880.0,113870.0,1.53247162]
[1757551842010,3.2958,113880.0,113870.0,1.69025406]
[1757551842212,2.49656,113880.0,113870.0,1.69025406]
[1757551842410,3.2956,113880.0,113870.0,1.69025406]
[1757551842708,3.2956,113880.0,113870.0,1.60118902]
[1757551842914,3.2956,113880.0,113870.0,1.3263143]
[1757551843114,3.2956,113880.0,113870.0,1.60118902]
[1757551846914,2.57388,113880.0,113870.0,1.60118902]
[1757551847116,2.93468,113880.0,113870.0,1.60118902]
[1757551847616,2.93468,113880.0,113870.0,1.75897146]
[1757551848317,2.93468,113880.0,113870.0,1.60118902]
[1757551849519,2.57388,113880.0,113870.0,1.60118902]
[1757551849715,2.57388,113880.0,113870.0,1.53247162]
[1757551853825,1.77496,113880.0,113870.0,1.53247162]
[1757551854026,2.57384,113880.0,113870.0,1.41537934]
[1757551854224,2.57384,113880.0,113870.0,1.69025406]
[1757551856126,2.57448,113880.0,113870.0,1.69025406]
[1757551863030,2.57448,113880.0,113870.0,1.2575969]
[1757551863231,2.93528,113880.0,113870.0,1.39503426]
[1757551864534,2.93528,113880.0,113870.0,1.5528167]
[1757551866333,2.93528,113880.0,113870.0,1.69025406]
[1757551866532,2.13576,113880.0,113870.0,1.69025406]
[1757551866736,2.93476,113880.0,113870.0,1.69025406]
[1757551867033,2.57396,113880.0,113870.0,1.69025406]
[1757551869133,1.77496,113880.0,113870.0,1.69025406]
[1757551869328,2.57376,113880.0,113870.0,1.69025406]
[1757551871830,2.57376,113880.0,113870.0,1.41537934]
[1757551872035,2.57376,113880.0,113870.0,1.69025406]
[1757551875041,2.57376,113880.0,113870.0,1.53247162]
[1757551875235,2.57376,113880.0,113870.0,1.690454]
[1757551880437,1.77496,113880.0,113870.0,1.690454]
[1757551880638,2.57348,113880.0,113870.0,1.690454]
[1757551880936,2.57348,113880.0,113870.0,1.53247162]
[1757551881243,2.57348,113880.0,113870.0,1.69048836]
[1757551889949,2.57348,113880.0,113870.0,1.41561364]
[1757551890155,2.57348,113880.0,113870.0,1.69048836]
[1757551890855,1.77496,113880.0,113870.0,1.69048836]
[1757551891056,2.57336,113880.0,113870.0,1.69048836]
[1757551892554,2.57336,113880.0,113870.0,1.53247162]
[1757551893256,2.57336,113880.0,113870.0,1.2575969]
[1757551893451,2.57336,113880.0,113870.0,1.39503426]
[1757551893754,3.07159736,113880.0,113870.0,0.9198]
[1757551893946,3.47978914,113880.0,113870.0,0.9198]
[1757551894141,3.47978914,113880.0,113870.0,0.3798]
[1757551894342,3.47978914,113880.0,113870.0,0.5298]
[1757551894547,3.47978914,113880.0,113870.0,0.3798]
[1757551895742,3.47978914,113880.0,113870.0,0.35598]
[1757551896351,3.3882302,113880.0,113870.0,0.35598]
[1757551896648,3.20491442,113880.0,113870.0,0.35598]
[1757551896848,3.3882302,113880.0,113870.0,0.35598]
[1757551899254,3.1382302,113880.0,113870.0,0.35598]
[1757551913565,3.4990302,113880.0,113870.0,0.35598]
[1757551914263,2.7006302,113880.0,113870.0,0.37877]
[1757551914460,3.4990302,113880.0,113870.0,0.37877]
[1757551918577,3.4990302,113880.0,113870.0,0.35598]
[1757551919179,2.7006302,113880.0,113870.0,0.35598]
[1757551919379,3.4990302,113880.0,113870.0,0.35598]
[1757551921383,2.51731442,113880.0,113870.0,0.37877]
[1757551921572,3.4990302,113880.0,113870.0,0.37877]
[1757551921773,4.01731442,113880.0,113870.0,0.47042789]
[1757551922082,3.40737231,113880.0,113870.0,0.47042789]
[1757551922286,2.60897231,113880.0,113870.0,0.47042789]
[1757551922477,2.60897231,113880.0,113870.0,0.62877]
[1757551922478,2.51731442,113880.0,113870.0,0.62877]
[1757551922779,3.40737231,113880.0,113870.0,0.84042789]
[1757551922979,2.60897231,113880.0,113870.0,0.74877]
[1757551923175,3.40737231,113880.0,113870.0,0.62877]
[1757551924182,2.60897231,113880.0,113870.0,0.62877]
[1757551924480,3.40737231,113880.0,113870.0,0.62877]
[1757551924882,2.60897231,113880.0,113870.0,0.62877]
[1757551925083,3.40737231,113880.0,113870.0,0.62877]
[1757551930082,4.90737231,113880.0,113870.0,0.62877]
[1757551930482,4.81571442,113880.0,113870.0,0.62877]
[1757551930684,4.90737231,113880.0,113870.0,0.62877]
[1757551931775,4.10897231,113880.0,113870.0,0.62877]
[1757551931971,4.90737231,113880.0,113870.0,0.62877]
[1757551935082,4.10897231,113880.0,113870.0,0.84042789]
[1757551935383,4.90737231,113880.0,113870.0,0.62877]
[1757551936186,2.51731442,113880.0,113870.0,0.61042789]
[1757551936489,3.31571442,113880.0,113870.0,1.09042789]
[1757551937688,3.31571442,113880.0,113870.0,1.34042789]
[1757551938076,2.51731442,113880.0,113870.0,1.42822479]
[1757551938281,3.31567442,113880.0,113870.0,1.58626056]
[1757551939284,3.31567442,113880.0,113870.0,1.49846366]
[1757551941192,2.95487442,113880.0,113870.0,1.49846366]
[1757551941492,2.95487442,113880.0,113870.0,1.59012155]
[1757551941694,2.59407442,113880.0,113870.0,1.49846366]
[1757551942392,2.95487442,113880.0,113870.0,1.49846366]
[1757551943193,2.15651442,113880.0,113870.0,1.49846366]
[1757551943393,2.95483442,113880.0,113870.0,1.49846366]
[1757551944795,2.95483442,113880.0,113870.0,1.34042789]
[1757551952101,2.95483442,113880.0,113870.0,1.42822439]
[1757551952703,2.95483442,113880.0,113870.0,1.58626016]
[1757551953804,2.59403442,113880.0,113870.0,1.58626016]
[1757551956208,2.59403442,113880.0,113870.0,1.67791805]
[1757551957308,1.79571442,113880.0,113870.0,1.67791805]
[1757551957508,2.59395442,113880.0,113870.0,1.67791805]
[1757551958015,2.59395442,113880.0,113870.0,1.58626016]
[1757551958308,2.59395442,113880.0,113870.0,1.76940845]
[1757551959312,2.59395442,113880.0,113870.0,1.51940845]
[1757551960309,2.95475442,113880.0,113870.0,1.51940845]
[1757551962018,2.95475442,113880.0,113870.0,1.29420886]
[1757551962311,3.09215751,113880.0,113870.0,1.29420886]
[1757551963715,2.95475442,113880.0,113870.0,1.29420886]
[1757551968516,2.95467442,113880.0,113870.0,1.29420886]
[1757551971612,2.95463442,113880.0,113870.0,1.43161195]
[1757551976417,2.95463442,113880.0,113870.0,1.29420886]
[1757551976719,2.95463442,113880.0,113870.0,1.15680577]
[1757551976912,2.95463442,113880.0,113870.0,1.29420886]
[1757551977518,2.95463442,113880.0,113870.0,1.43161195]
[1757551977719,2.95463442,113880.0,113870.0,1.15680577]
[1757551977909,2.95463442,113880.0,113870.0,1.43161195]
[1757551978110,2.95463442,113880.0,113870.0,1.29420886]
[1757551979924,2.95463442,113880.0,113870.0,1.15680577]
[1757551980221,2.95463442,113880.0,113870.0,1.29420886]
[1757551982112,2.95463442,113880.0,113870.0,1.43161195]
[1757551982520,2.95463442,113880.0,113870.0,1.27357618]
[1757551985322,2.15651442,113880.0,113870.0,1.27357618]
[1757551985523,2.95459442,113880.0,113870.0,1.27357618]
[1757551986325,2.15651442,113880.0,113870.0,1.27357618]
[1757551986526,2.95459442,113880.0,113870.0,1.27357618]
[1757551988230,2.15651442,113880.0,113870.0,1.36137258]
[1757551988428,2.59375442,113880.0,113870.0,1.36137258]
[1757551989130,1.77496,113880.0,113870.0,1.74877567]
[1757551989429,2.573,113880.0,113870.0,2.10957567]
[1757551990525,2.573,113880.0,113870.0,2.31515648]
[1757551996438,1.77496,113880.0,113870.0,2.31515648]
[1757551996639,2.57292,113880.0,113870.0,2.31515648]
[1757551998845,2.57292,113880.0,113870.0,1.95435648]
[1757551999040,2.57292,113880.0,113870.0,2.31515648]
[1757552000249,1.77496,113880.0,113870.0,2.31515648]
[1757552000547,2.57292,113880.0,113870.0,2.31515648]
[1757552001144,0.80196,113880.0,113870.0,2.31515648]
[1757552001538,0.80196,113880.0,113870.0,2.10957567]
[1757552002746,0.80196,113880.0,113870.0,2.31515648]
[1757552005849,0.004,113880.0,113870.0,2.31515648]
[1757552006051,0.80208,113880.0,113870.0,2.31515648]
[1757552006939,0.80192,113880.0,113870.0,2.31515648]
[1757552007339,0.004,113880.0,113870.0,2.31515648]
[1757552007550,0.59912,113880.0,113870.0,2.31515648]
[1757552015766,0.004,113880.0,113870.0,2.31515648]
[1757552015965,0.63464,113880.0,113870.0,2.31515648]
[1757552017069,0.004,113880.0,113870.0,2.31515648]
[1757552017268,0.80188,113880.0,113870.0,2.31515648]
[1757552018366,0.80188,113880.0,113870.0,2.08609851]
[1757552019371,0.80188,113880.0,113870.0,1.83609851]
[1757552019566,0.80188,113880.0,113870.0,1.6305177]
[1757552020373,2.13997866,113910.0,113900.0,0.03418]
[1757552020670,2.93785866,113910.0,113900.0,1.1173313]
[1757552021566,2.14397866,113910.0,113900.0,1.1173313]
[1757552021770,2.94185866,113910.0,113900.0,1.1174813]
[1757552021969,2.94585866,113910.0,113900.0,1.1184813]
[1757552022567,2.14797866,113910.0,113900.0,1.1184813]
[1757552022765,2.94673866,113910.0,113900.0,1.1184813]
[1757552022968,2.14797866,113910.0,113900.0,1.1184813]
[1757552023166,2.94669866,113910.0,113900.0,0.93533]
[1757552023372,2.94669866,113910.0,113900.0,1.1184813]
[1757552025267,2.94653866,113910.0,113900.0,1.1184813]
[1757552025868,2.94253866,113910.0,113900.0,1.1174813]
[1757552026076,2.94553866,113910.0,113900.0,1.1174813]
[1757552026573,2.94453866,113910.0,113900.0,1.1174813]
[1757552028277,2.94449866,113910.0,113900.0,1.1174813]
[1757552028464,2.94441866,113910.0,113900.0,1.1174813]
[1757552028668,2.93556,113910.0,113900.0,1.205255]
[1757552028866,2.93556,113910.0,113900.0,1.29683065]
[1757552029070,2.57476,113910.0,113900.0,1.65763065]
[1757552029273,1.77632,113910.0,113900.0,1.91628518]
[1757552029475,2.57484,113910.0,113900.0,1.91628518]
[1757552030177,2.57184,113910.0,113900.0,1.91628518]
[1757552030380,2.57184,113910.0,113900.0,2.12186599]
[1757552030676,2.56884,113910.0,113900.0,2.12386599]
[1757552030878,2.56876,113910.0,113900.0,2.12386599]
[1757552031071,2.55822657,113910.0,113900.0,2.12486599]
[1757552033173,2.55822657,113910.0,113900.0,1.87486599]
[1757552033377,2.55822657,113910.0,113900.0,1.78329034]
[1757552033875,2.55822657,113910.0,113900.0,1.77463581]
[1757552034278,2.55822657,113910.0,113900.0,1.86621146]
[1757552034579,2.55798657,113910.0,113900.0,1.86621146]
[1757552035679,2.55798657,113910.0,113900.0,1.87482709]
[1757552037878,2.55798657,113910.0,113900.0,1.66924628]
[1757552039876,2.55798657,113910.0,113900.0,1.82668403]
[1757552040680,2.55798657,113910.0,113900.0,1.66924628]
[1757552041880,2.55798657,113910.0,113900.0,1.82667184]
[1757552042782,0.79776,113910.0,113900.0,2.07667184]
[1757552042981,0.76276,113910.0,113900.0,2.07667184]
[1757552043280,0.72776,113910.0,113900.0,2.07667184]
[1757552045685,0.72776,113910.0,113900.0,1.82667184]
[1757552047790,0.37969,113930.0,113920.0,0.1245584]
[1757552048089,1.17753,113930.0,113920.0,1.2277097]
[1757552048585,0.37969,113930.0,113920.0,1.2277097]
[1757552048786,1.17741,113930.0,113920.0,1.2277097]
[1757552049084,1.17841,113930.0,113920.0,1.2277097]
[1757552049386,1.17841,113930.0,113920.0,1.2278597]
[1757552049888,0.001,113930.0,113920.0,1.31943535]
[1757552050087,0.79988,113930.0,113920.0,1.31943535]
[1757552050386,0.002,113930.0,113920.0,1.68023535]
[1757552050584,0.79984,113930.0,113920.0,1.68023535]
[1757552052979,0.79972,113930.0,113920.0,1.68023535]
[1757552053882,0.79972,113930.0,113920.0,1.79044656]
[1757552055891,0.79968,113930.0,113920.0,1.68023535]
[1757552062692,0.79968,113930.0,113920.0,1.5886597]
[1757552062902,0.79968,113930.0,113920.0,1.68023535]
[1757552064498,1.04968,113930.0,113920.0,1.5009013]
[1757552064700,1.06857,113930.0,113920.0,0.95695]
[1757552064899,1.06857,113930.0,113920.0,1.1401013]
[1757552065293,1.06857,113930.0,113920.0,0.95695]
[1757552065495,1.06857,113930.0,113920.0,1.1401013]
[1757552066103,1.06857,113930.0,113920.0,1.2278596]
[1757552067402,1.06857,113930.0,113920.0,1.38547606]
[1757552068806,1.06857,113930.0,113920.0,1.2278596]
[1757552070308,1.06857,113930.0,113920.0,1.0447083]
[1757552070505,1.06857,113930.0,113920.0,1.2278596]
[1757552070908,1.06857,113930.0,113920.0,1.1401013]
[1757552072903,1.06857,113930.0,113920.0,1.29771776]
[1757552073605,1.42937,113930.0,113920.0,1.29771776]
[1757552073806,1.42937,113930.0,113920.0,1.1401013]
[1757552074607,1.42937,113930.0,113920.0,1.11456646]
[1757552074808,1.42937,113930.0,113920.0,1.20614211]
[1757552075507,1.42937,113930.0,113920.0,1.04852565]
[1757552075704,1.52094565,113930.0,113920.0,0.58695]
[1757552076110,1.52094565,113930.0,113920.0,0.67852565]
[1757552076305,1.52094565,113930.0,113920.0,0.65554565]
[1757552076505,1.52094565,113930.0,113920.0,0.66055353]
[1757552076916,1.52094565,113930.0,113920.0,0.55015]
[1757552078916,1.52086565,113930.0,113920.0,0.66055353]
[1757552079316,1.27086565,113930.0,113920.0,0.66055353]
[1757552079815,1.42929,113930.0,113920.0,0.42055353]
[1757552080004,1.52086565,113930.0,113920.0,0.42055353]
[1757552080408,1.7040162,113930.0,113920.0,0.31015]
[1757552080813,1.5666531,113930.0,113920.0,0.31015]
[1757552081209,1.7040162,113930.0,113920.0,0.31015]
[1757552082316,1.7041362,113930.0,113920.0,0.31015]
[1757552083817,0.9064162,113930.0,113920.0,0.31015]
[1757552084015,1.7040962,113930.0,113920.0,0.31015]
[1757552084219,1.77589418,113930.0,113920.0,0.31015]
[1757552085423,1.77593418,113930.0,113920.0,0.31015]
[1757552085717,0.70348798,113930.0,113920.0,0.31015]
[1757552085919,1.63857108,113930.0,113920.0,0.31015]
[1757552086416,0.84085108,113930.0,113920.0,0.31015]
[1757552086618,1.63865108,113930.0,113920.0,0.31015]
[1757552088215,1.63861108,113930.0,113920.0,0.31015]
[1757552089521,0.84085108,113930.0,113920.0,0.31015]
[1757552089822,0.84085108,113930.0,113920.0,0.4475131]
[1757552089823,1.63861108,113930.0,113920.0,0.4475131]
[1757552090120,1.63861108,113930.0,113920.0,0.31015]
[1757552095227,0.84085108,113930.0,113920.0,0.31015]
[1757552095424,0.84085108,113930.0,113920.0,0.4706231]
[1757552095425,1.63869108,113930.0,113920.0,0.4706231]
[1757552096323,1.63869108,113930.0,113920.0,0.4475131]
[1757552097120,0.84085108,113930.0,113920.0,0.4475131]
[1757552097320,1.63869108,113930.0,113920.0,0.4475131]
[1757552098225,1.63866468,113930.0,113920.0,0.4474867]
[1757552098618,0.84082468,113930.0,113920.0,0.4474867]
[1757552098818,1.63862468,113930.0,113920.0,0.4474867]